[Event "January 2 Late 2024"]
[Site "https://www.chess.com"]
[Date "2024.01.02"]
[Round "3"]
[White "Oliveira, Tiago Batista"]
[Black "Van der Werf, Mark"]
[Result "0-1"]
[Board "228"]
[TimeControl "180+1"]
[WhiteFideId "2108291"]
[BlackFideId "1000470"]
[WhiteElo "2025"]
[BlackElo "2349"]
[WhiteTeam "BRA"]
[BlackTeam "NED"]
[WhiteClock "0:00:07"]
[BlackClock "0:01:28"]

1. d4 {[%clk 0:03:00]}  g6 {[%clk 0:02:59]} 2. c4 {[%clk 0:03:00]}  Bg7 {[%clk 0:02:59]} 3. Nf3 {[%clk 0:03:00]}  c5 {[%clk 0:02:58]} 4. d5 {[%clk 0:02:59]}  Nf6 {[%clk 0:02:56]} 5. g3 {[%clk 0:02:59]}  O-O {[%clk 0:02:56]} 6. Bg2 {[%clk 0:02:59]}  b5 {[%clk 0:02:55]} 7. cxb5 {[%clk 0:02:58]}  d6 {[%clk 0:02:55]} 8. O-O {[%clk 0:02:58]}  a6 {[%clk 0:02:55]} 9. bxa6 {[%clk 0:02:55]}  Nxa6 {[%clk 0:02:54]} 10. Nc3 {[%clk 0:02:54]}  Nc7 {[%clk 0:02:51]} 11. Re1 {[%clk 0:02:43]}  Ba6 {[%clk 0:02:36]} 12. e4 {[%clk 0:02:43]}  Nd7 {[%clk 0:02:35]} 13. Bf4 {[%clk 0:02:36]}  Nb5 {[%clk 0:02:17]} 14. Nxb5 {[%clk 0:02:26]}  Bxb5 {[%clk 0:02:17]} 15. e5 {[%clk 0:02:19]}  Qb6 {[%clk 0:02:17]} 16. e6 {[%clk 0:02:13]}  fxe6 {[%clk 0:02:16]} 17. dxe6 {[%clk 0:02:12]}  Nf6 {[%clk 0:02:13]} 18. Ng5 {[%clk 0:01:58]}  Bc6 {[%clk 0:02:12]} 19. Nf7 {[%clk 0:01:01]}  Bxg2 {[%clk 0:02:09]} 20. Kxg2 {[%clk 0:01:01]}  Qxb2 {[%clk 0:02:07]} 21. Rb1 {[%clk 0:00:38]}  Qxa2 {[%clk 0:02:01]} 22. Rb7 {[%clk 0:00:37]}  Ra7 {[%clk 0:01:55]} 23. Nxd6 {[%clk 0:00:22]}  exd6 {[%clk 0:01:49]} 24. e7 {[%clk 0:00:19]}  Rxb7 {[%clk 0:01:42]} 25. exf8=Q+ {[%clk 0:00:14]}  Bxf8 {[%clk 0:01:41]} 26. Bxd6 {[%clk 0:00:10]}  Bxd6 {[%clk 0:01:34]} 27. Qxd6 {[%clk 0:00:09]}  Qd5+ {[%clk 0:01:34]} 28. Qxd5+ {[%clk 0:00:09]}  Nxd5 {[%clk 0:01:34]} 29. Re5 {[%clk 0:00:09]}  Rd7 {[%clk 0:01:32]} 30. Kf3 {[%clk 0:00:10]}  c4 {[%clk 0:01:31]} 31. Re6 {[%clk 0:00:10]}  c3 {[%clk 0:01:30]} 32. Rc6 {[%clk 0:00:07]}  Rc7 {[%clk 0:01:28]} 0-1

[Event "January 2 Late 2024"]
[Site "https://www.chess.com"]
[Date "2024.01.02"]
[Round "3"]
[White "Carrillo Marval, Maria Angelica"]
[Black "Travadon, Loic"]
[Result "0-1"]
[Board "233"]
[TimeControl "180+1"]
[WhiteFideId "3911853"]
[BlackFideId "26092131"]
[WhiteElo "1968"]
[BlackElo "2317"]
[WhiteTeam "PAN"]
[BlackTeam "FRA"]
[WhiteClock "0:00:19"]
[BlackClock "0:00:11"]

1. e4 {[%clk 0:03:00]}  e5 {[%clk 0:02:58]} 2. Nf3 {[%clk 0:02:59]}  Nc6 {[%clk 0:02:58]} 3. Bc4 {[%clk 0:02:59]}  Bc5 {[%clk 0:02:56]} 4. c3 {[%clk 0:02:59]}  Nf6 {[%clk 0:02:49]} 5. d3 {[%clk 0:02:58]}  d6 {[%clk 0:02:48]} 6. Nbd2 {[%clk 0:02:56]}  a6 {[%clk 0:02:48]} 7. O-O {[%clk 0:02:56]}  Ba7 {[%clk 0:02:45]} 8. h3 {[%clk 0:02:55]}  h6 {[%clk 0:02:44]} 9. Re1 {[%clk 0:02:55]}  g5 {[%clk 0:02:43]} 10. Nf1 {[%clk 0:02:55]}  g4 {[%clk 0:02:42]} 11. hxg4 {[%clk 0:02:52]}  Bxg4 {[%clk 0:02:43]} 12. Be3 {[%clk 0:02:44]}  Rg8 {[%clk 0:02:23]} 13. Bxa7 {[%clk 0:02:39]}  Rxa7 {[%clk 0:02:20]} 14. N1h2 {[%clk 0:02:36]}  Bh5 {[%clk 0:02:16]} 15. Qd2 {[%clk 0:02:35]}  Bxf3 {[%clk 0:01:51]} 16. Nxf3 {[%clk 0:02:34]}  Ng4 {[%clk 0:01:52]} 17. d4 {[%clk 0:02:23]}  Qf6 {[%clk 0:01:35]} 18. Be2 {[%clk 0:02:03]}  h5 {[%clk 0:01:29]} 19. Rad1 {[%clk 0:02:03]}  h4 {[%clk 0:01:22]} 20. dxe5 {[%clk 0:02:03]}  Ngxe5 {[%clk 0:01:22]} 21. Nxe5 {[%clk 0:01:58]}  Nxe5 {[%clk 0:01:22]} 22. f4 {[%clk 0:01:58]}  Qg7 {[%clk 0:01:05]} 23. Bb5+ {[%clk 0:01:22]}  axb5 {[%clk 0:01:04]} 24. fxe5 {[%clk 0:01:22]}  Qxe5 {[%clk 0:01:00]} 25. a3 {[%clk 0:01:04]}  h3 {[%clk 0:00:56]} 26. Re2 {[%clk 0:01:02]}  Ra4 {[%clk 0:00:56]} 27. Rde1 {[%clk 0:00:55]}  Qc5+ {[%clk 0:00:15]} 28. Qe3 {[%clk 0:00:25]}  Qxe3+ {[%clk 0:00:12]} 29. Rxe3 {[%clk 0:00:26]}  Rxg2+ {[%clk 0:00:12]} 30. Kh1 {[%clk 0:00:25]}  Kd7 {[%clk 0:00:12]} 31. Rxh3 {[%clk 0:00:25]}  Rxb2 {[%clk 0:00:11]} 32. Rf3 {[%clk 0:00:22]}  Rxa3 {[%clk 0:00:11]} 33. Rxf7+ {[%clk 0:00:22]}  Kc6 {[%clk 0:00:12]} 34. Rc1 {[%clk 0:00:20]}  Re2 {[%clk 0:00:10]} 35. Rf4 {[%clk 0:00:20]}  Raa2 {[%clk 0:00:09]} 36. Rh4 {[%clk 0:00:19]}  Re3 {[%clk 0:00:10]} 37. c4 {[%clk 0:00:16]}  Rae2 {[%clk 0:00:10]} 38. cxb5+ {[%clk 0:00:16]}  Kb6 {[%clk 0:00:11]} 39. Rh7 {[%clk 0:00:14]}  Re1+ {[%clk 0:00:10]} 40. Rxe1 {[%clk 0:00:13]}  Rxe1+ {[%clk 0:00:11]} 41. Kg2 {[%clk 0:00:13]}  Rxe4 {[%clk 0:00:12]} 42. Kf3 {[%clk 0:00:14]}  Rb4 {[%clk 0:00:11]} 43. Rh5 {[%clk 0:00:14]}  Rxb5 {[%clk 0:00:11]} 44. Rh4 {[%clk 0:00:15]}  d5 {[%clk 0:00:10]} 45. Rh7 {[%clk 0:00:16]}  c6 {[%clk 0:00:10]} 46. Ke3 {[%clk 0:00:17]}  Rb4 {[%clk 0:00:10]} 47. Kd3 {[%clk 0:00:17]}  Kc5 {[%clk 0:00:11]} 48. Rg7 {[%clk 0:00:16]}  b5 {[%clk 0:00:11]} 49. Kc3 {[%clk 0:00:16]}  Rc4+ {[%clk 0:00:11]} 50. Kb3 {[%clk 0:00:17]}  b4 {[%clk 0:00:11]} 51. Ra7 {[%clk 0:00:16]}  Rc3+ {[%clk 0:00:11]} 52. Kb2 {[%clk 0:00:17]}  Kc4 {[%clk 0:00:11]} 53. Rh7 {[%clk 0:00:17]}  c5 {[%clk 0:00:12]} 54. Rh4+ {[%clk 0:00:18]}  d4 {[%clk 0:00:12]} 55. Rh5 {[%clk 0:00:18]}  b3 {[%clk 0:00:12]} 56. Rh8 {[%clk 0:00:18]}  Rc2+ {[%clk 0:00:12]} 57. Kb1 {[%clk 0:00:17]}  Kc3 {[%clk 0:00:12]} 58. Rb8 {[%clk 0:00:18]}  Rf2 {[%clk 0:00:12]} 59. Rc8 {[%clk 0:00:19]}  Rf1# {[%clk 0:00:11]} 0-1

[Event "January 2 Late 2024"]
[Site "https://www.chess.com"]
[Date "2024.01.02"]
[Round "3"]
[White "Romero Ruscalleda, Josep"]
[Black "Burke, Paul"]
[Result "1-0"]
[Board "234"]
[TimeControl "180+1"]
[WhiteFideId "2231859"]
[BlackFideId "2605767"]
[WhiteElo "2314"]
[BlackElo "1920"]
[WhiteTeam "ESP"]
[BlackTeam "CAN"]
[WhiteClock "0:00:06"]
[BlackClock "0:00:00"]

1. e4 {[%clk 0:03:00]}  e5 {[%clk 0:02:51]} 2. Nf3 {[%clk 0:03:00]}  Nc6 {[%clk 0:02:51]} 3. Bc4 {[%clk 0:02:59]}  Be7 {[%clk 0:02:50]} 4. d4 {[%clk 0:02:57]}  exd4 {[%clk 0:02:50]} 5. Nxd4 {[%clk 0:02:57]}  d6 {[%clk 0:02:50]} 6. Nc3 {[%clk 0:02:56]}  Nf6 {[%clk 0:02:50]} 7. h3 {[%clk 0:02:52]}  O-O {[%clk 0:02:50]} 8. Be3 {[%clk 0:02:51]}  a6 {[%clk 0:02:49]} 9. a4 {[%clk 0:02:45]}  Nxd4 {[%clk 0:02:45]} 10. Bxd4 {[%clk 0:02:45]}  Be6 {[%clk 0:02:45]} 11. Bd3 {[%clk 0:02:41]}  c5 {[%clk 0:02:41]} 12. Be3 {[%clk 0:02:38]}  c4 {[%clk 0:02:41]} 13. Be2 {[%clk 0:02:38]}  b5 {[%clk 0:02:39]} 14. axb5 {[%clk 0:02:35]}  axb5 {[%clk 0:02:39]} 15. Nxb5 {[%clk 0:02:28]}  Rxa1 {[%clk 0:02:38]} 16. Qxa1 {[%clk 0:02:27]}  Nxe4 {[%clk 0:02:38]} 17. O-O {[%clk 0:02:22]}  d5 {[%clk 0:02:22]} 18. Qa7 {[%clk 0:02:20]}  Bf6 {[%clk 0:02:14]} 19. Bd4 {[%clk 0:01:54]}  Bxd4 {[%clk 0:02:00]} 20. Nxd4 {[%clk 0:01:54]}  Qf6 {[%clk 0:01:59]} 21. Bf3 {[%clk 0:01:48]}  Ng5 {[%clk 0:01:57]} 22. Bg4 {[%clk 0:01:31]}  Bxg4 {[%clk 0:01:31]} 23. hxg4 {[%clk 0:01:31]}  Ne4 {[%clk 0:01:25]} 24. c3 {[%clk 0:01:22]}  Qf4 {[%clk 0:01:09]} 25. Qd7 {[%clk 0:01:19]}  Nf6 {[%clk 0:01:06]} 26. Qb5 {[%clk 0:00:49]}  Nxg4 {[%clk 0:01:03]} 27. g3 {[%clk 0:00:47]}  Qe4 {[%clk 0:00:39]} 28. Ra1 {[%clk 0:00:39]}  Ne5 {[%clk 0:00:33]} 29. Qb7 {[%clk 0:00:31]}  Nd3 {[%clk 0:00:27]} 30. Qd7 {[%clk 0:00:19]}  Nxb2 {[%clk 0:00:25]} 31. Nf5 {[%clk 0:00:17]}  Nd3 {[%clk 0:00:21]} 32. Ne7+ {[%clk 0:00:16]}  Kh8 {[%clk 0:00:20]} 33. Qd6 {[%clk 0:00:16]}  Ne5 {[%clk 0:00:16]} 34. Ng6+ {[%clk 0:00:15]}  Nxg6 {[%clk 0:00:17]} 35. Ra7 {[%clk 0:00:10]}  Rg8 {[%clk 0:00:14]} 36. Qd7 {[%clk 0:00:09]}  Qe1+ {[%clk 0:00:13]} 37. Kg2 {[%clk 0:00:08]}  Qe4+ {[%clk 0:00:13]} 38. Kg1 {[%clk 0:00:08]}  Qe6 {[%clk 0:00:13]} 39. Qxf7 {[%clk 0:00:07]}  Qxf7 {[%clk 0:00:12]} 40. Rxf7 {[%clk 0:00:08]}  Rd8 {[%clk 0:00:11]} 41. Kf1 {[%clk 0:00:07]}  h6 {[%clk 0:00:11]} 42. Ke2 {[%clk 0:00:07]}  d4 {[%clk 0:00:11]} 43. cxd4 {[%clk 0:00:06]}  Rxd4 {[%clk 0:00:11]} 44. Rc7 {[%clk 0:00:07]}  Ne5 {[%clk 0:00:06]} 45. f4 {[%clk 0:00:06]}  Ng4 {[%clk 0:00:05]} 46. Kf3 {[%clk 0:00:06]}  Nf6 {[%clk 0:00:03]} 47. Ke3 {[%clk 0:00:05]}  Rd3+ {[%clk 0:00:03]} 48. Kf2 {[%clk 0:00:06]}  Ne4+ {[%clk 0:00:00]} 49. Ke2 {[%clk 0:00:06]} 1-0

[Event "January 2 Late 2024"]
[Site "https://www.chess.com"]
[Date "2024.01.02"]
[Round "3"]
[White "Odeh, Kenneth"]
[Black "Fernandez Siles, Luis"]
[Result "0-1"]
[Board "235"]
[TimeControl "180+1"]
[WhiteFideId "8500142"]
[BlackFideId "2209420"]
[WhiteElo "1911"]
[BlackElo "2305"]
[WhiteTeam "NGR"]
[BlackTeam "ESP"]
[WhiteClock "0:00:00"]
[BlackClock "0:02:04"]

1. e4 {[%clk 0:02:51]}  c5 {[%clk 0:02:59]} 2. Nc3 {[%clk 0:02:51]}  Nc6 {[%clk 0:02:58]} 3. g3 {[%clk 0:02:50]}  g6 {[%clk 0:02:58]} 4. Bg2 {[%clk 0:02:50]}  Bg7 {[%clk 0:02:58]} 5. Nge2 {[%clk 0:02:50]}  Nf6 {[%clk 0:02:54]} 6. O-O {[%clk 0:02:48]}  h5 {[%clk 0:02:52]} 7. h4 {[%clk 0:02:47]}  d6 {[%clk 0:02:51]} 8. d3 {[%clk 0:02:17]}  Bg4 {[%clk 0:02:49]} 9. f3 {[%clk 0:02:04]}  Bd7 {[%clk 0:02:47]} 10. Nd5 {[%clk 0:00:35]}  Nxd5 {[%clk 0:02:39]} 11. exd5 {[%clk 0:00:34]}  Nd4 {[%clk 0:02:40]} 12. Nxd4 {[%clk 0:00:33]}  Bxd4+ {[%clk 0:02:34]} 13. Kh2 {[%clk 0:00:00]}  O-O {[%clk 0:02:04]} 0-1

[Event "January 2 Late 2024"]
[Site "https://www.chess.com"]
[Date "2024.01.02"]
[Round "3"]
[White "Vargas, Mauricio"]
[Black "Kornyukov, Alexey"]
[Result "0-1"]
[Board "236"]
[TimeControl "180+1"]
[WhiteFideId "4404572"]
[BlackFideId "4150457"]
[WhiteElo "1838"]
[BlackElo "2303"]
[WhiteTeam "COL"]
[BlackTeam "RUS"]
[WhiteClock "0:00:43"]
[BlackClock "0:01:43"]

1. e4 {[%clk 0:02:59]}  c5 {[%clk 0:02:59]} 2. Nc3 {[%clk 0:02:58]}  Nc6 {[%clk 0:02:59]} 3. f4 {[%clk 0:02:58]}  e6 {[%clk 0:02:57]} 4. Nf3 {[%clk 0:02:59]}  d5 {[%clk 0:02:57]} 5. Bb5 {[%clk 0:02:57]}  dxe4 {[%clk 0:02:54]} 6. Bxc6+ {[%clk 0:02:56]}  bxc6 {[%clk 0:02:54]} 7. Nxe4 {[%clk 0:02:57]}  c4 {[%clk 0:02:52]} 8. O-O {[%clk 0:02:53]}  Nf6 {[%clk 0:02:51]} 9. Nxf6+ {[%clk 0:02:39]}  Qxf6 {[%clk 0:02:52]} 10. g3 {[%clk 0:02:31]}  Bc5+ {[%clk 0:02:49]} 11. Kg2 {[%clk 0:02:28]}  O-O {[%clk 0:02:49]} 12. Qe2 {[%clk 0:02:28]}  a5 {[%clk 0:02:33]} 13. Qxc4 {[%clk 0:02:23]}  Bb6 {[%clk 0:02:30]} 14. Qxc6 {[%clk 0:02:16]}  Rb8 {[%clk 0:02:29]} 15. c3 {[%clk 0:02:05]}  Bb7 {[%clk 0:02:24]} 16. Qc4 {[%clk 0:02:04]}  e5 {[%clk 0:02:18]} 17. fxe5 {[%clk 0:01:57]}  Qxe5 {[%clk 0:02:17]} 18. d4 {[%clk 0:01:51]}  Qh5 {[%clk 0:02:15]} 19. Bf4 {[%clk 0:01:48]}  Rbc8 {[%clk 0:02:07]} 20. Qb3 {[%clk 0:01:45]}  Rfe8 {[%clk 0:01:55]} 21. Qxb6 {[%clk 0:01:34]}  Re2+ {[%clk 0:01:54]} 22. Kg1 {[%clk 0:01:15]}  Bxf3 {[%clk 0:01:45]} 23. Qa6 {[%clk 0:00:43]}  Qxh2# {[%clk 0:01:43]} 0-1

[Event "January 2 Late 2024"]
[Site "https://www.chess.com"]
[Date "2024.01.02"]
[Round "4"]
[White "Firouzja, Alireza"]
[Black "Tang, Andrew"]
[Result "1-0"]
[Board "3"]
[TimeControl "180+1"]
[WhiteFideId "12573981"]
[BlackFideId "2059630"]
[WhiteElo "3164"]
[BlackElo "2907"]
[WhiteTeam "FRA"]
[BlackTeam "USA"]
[WhiteClock "0:00:14"]
[BlackClock "0:00:03"]

1. e4 {[%clk 0:03:00]}  e5 {[%clk 0:02:58]} 2. Nf3 {[%clk 0:03:01]}  Nc6 {[%clk 0:02:59]} 3. Bb5 {[%clk 0:03:01]}  g6 {[%clk 0:02:59]} 4. d4 {[%clk 0:02:53]}  exd4 {[%clk 0:02:59]} 5. Bg5 {[%clk 0:02:52]}  Be7 {[%clk 0:02:59]} 6. Bxe7 {[%clk 0:02:52]}  Qxe7 {[%clk 0:03:00]} 7. Bxc6 {[%clk 0:02:52]}  dxc6 {[%clk 0:03:01]} 8. Qxd4 {[%clk 0:02:52]}  Nf6 {[%clk 0:03:02]} 9. Nc3 {[%clk 0:02:49]}  Bg4 {[%clk 0:03:01]} 10. Nd2 {[%clk 0:02:46]}  c5 {[%clk 0:03:01]} 11. Qe3 {[%clk 0:02:46]}  O-O-O {[%clk 0:03:02]} 12. h3 {[%clk 0:02:45]}  Bd7 {[%clk 0:02:58]} 13. O-O-O {[%clk 0:02:43]}  b6 {[%clk 0:02:58]} 14. e5 {[%clk 0:02:39]}  Nh5 {[%clk 0:02:42]} 15. g4 {[%clk 0:02:17]}  Ng7 {[%clk 0:02:42]} 16. Qf3 {[%clk 0:02:17]}  Kb8 {[%clk 0:02:40]} 17. Qf6 {[%clk 0:02:18]}  Qxf6 {[%clk 0:02:33]} 18. exf6 {[%clk 0:02:18]}  Ne6 {[%clk 0:02:33]} 19. Nc4 {[%clk 0:02:18]}  Nd4 {[%clk 0:02:13]} 20. Ne5 {[%clk 0:02:18]}  Be6 {[%clk 0:02:12]} 21. Rhe1 {[%clk 0:02:17]}  Kb7 {[%clk 0:02:11]} 22. Ne4 {[%clk 0:02:09]}  h6 {[%clk 0:00:54]} 23. Ng3 {[%clk 0:02:04]}  Rhe8 {[%clk 0:00:46]} 24. f4 {[%clk 0:02:00]}  Rd6 {[%clk 0:00:28]} 25. g5 {[%clk 0:01:10]}  hxg5 {[%clk 0:00:22]} 26. Ne4 {[%clk 0:01:05]}  gxf4 {[%clk 0:00:17]} 27. Nxd6+ {[%clk 0:01:05]}  cxd6 {[%clk 0:00:18]} 28. Nxf7 {[%clk 0:00:43]}  Rf8 {[%clk 0:00:06]} 29. Rxd4 {[%clk 0:00:34]}  cxd4 {[%clk 0:00:05]} 30. Rxe6 {[%clk 0:00:27]}  f3 {[%clk 0:00:04]} 31. Nxd6+ {[%clk 0:00:27]}  Kc6 {[%clk 0:00:04]} 32. Ne4+ {[%clk 0:00:16]}  Kd5 {[%clk 0:00:04]} 33. Re7 {[%clk 0:00:16]}  f2 {[%clk 0:00:05]} 34. Nxf2 {[%clk 0:00:16]}  Rxf6 {[%clk 0:00:05]} 35. Nd3 {[%clk 0:00:13]}  a5 {[%clk 0:00:06]} 36. b3 {[%clk 0:00:13]}  Rf1+ {[%clk 0:00:05]} 37. Kb2 {[%clk 0:00:14]}  Rf3 {[%clk 0:00:03]} 38. Rg7 {[%clk 0:00:14]} 1-0

[Event "January 2 Late 2024"]
[Site "https://www.chess.com"]
[Date "2024.01.02"]
[Round "4"]
[White "Mekhitarian, Krikor Sevag"]
[Black "Caruana, Fabiano"]
[Result "0-1"]
[Board "9"]
[TimeControl "180+1"]
[WhiteFideId "2107660"]
[BlackFideId "2020009"]
[WhiteElo "2847"]
[BlackElo "3034"]
[WhiteTeam "BRA"]
[BlackTeam "USA"]
[WhiteClock "0:00:16"]
[BlackClock "0:01:18"]

1. Nf3 {[%clk 0:02:59]}  Nf6 {[%clk 0:02:58]} 2. c4 {[%clk 0:03:00]}  e6 {[%clk 0:02:58]} 3. Nc3 {[%clk 0:03:00]}  d5 {[%clk 0:02:58]} 4. cxd5 {[%clk 0:03:00]}  exd5 {[%clk 0:02:58]} 5. d4 {[%clk 0:03:01]}  c6 {[%clk 0:02:59]} 6. Bf4 {[%clk 0:03:01]}  Bd6 {[%clk 0:02:58]} 7. Bxd6 {[%clk 0:03:01]}  Qxd6 {[%clk 0:02:59]} 8. e3 {[%clk 0:03:01]}  Bf5 {[%clk 0:02:58]} 9. Nh4 {[%clk 0:03:02]}  Bg6 {[%clk 0:02:59]} 10. Qb3 {[%clk 0:03:02]}  Qe7 {[%clk 0:02:47]} 11. Nxg6 {[%clk 0:03:00]}  hxg6 {[%clk 0:02:47]} 12. g3 {[%clk 0:03:00]}  O-O {[%clk 0:02:44]} 13. Bd3 {[%clk 0:02:59]}  a5 {[%clk 0:02:41]} 14. Kf1 {[%clk 0:02:59]}  b5 {[%clk 0:02:40]} 15. Rc1 {[%clk 0:02:54]}  Nbd7 {[%clk 0:02:40]} 16. Ne2 {[%clk 0:02:44]}  Rfc8 {[%clk 0:02:39]} 17. Kg2 {[%clk 0:02:43]}  Nb6 {[%clk 0:02:35]} 18. Qc2 {[%clk 0:02:37]}  a4 {[%clk 0:02:31]} 19. b3 {[%clk 0:02:31]}  Nbd7 {[%clk 0:02:26]} 20. h4 {[%clk 0:02:08]}  axb3 {[%clk 0:02:18]} 21. axb3 {[%clk 0:02:08]}  b4 {[%clk 0:02:18]} 22. Qb2 {[%clk 0:01:39]}  Ne4 {[%clk 0:01:56]} 23. Nf4 {[%clk 0:01:32]}  Ndf6 {[%clk 0:01:52]} 24. Ra1 {[%clk 0:01:26]}  Ra3 {[%clk 0:01:49]} 25. Rhc1 {[%clk 0:01:21]}  Rca8 {[%clk 0:01:45]} 26. Rxa3 {[%clk 0:01:15]}  bxa3 {[%clk 0:01:46]} 27. Qc2 {[%clk 0:01:16]}  c5 {[%clk 0:01:27]} 28. Nxd5 {[%clk 0:00:51]}  Nxd5 {[%clk 0:01:22]} 29. Bxe4 {[%clk 0:00:37]}  Nb4 {[%clk 0:01:21]} 30. Bxa8 {[%clk 0:00:25]}  Nxc2 {[%clk 0:01:20]} 31. Rxc2 {[%clk 0:00:16]}  Qa7 {[%clk 0:01:18]} 0-1

[Event "January 2 Late 2024"]
[Site "https://www.chess.com"]
[Date "2024.01.02"]
[Round "4"]
[White "Keymer, Vincent"]
[Black "Kadric, Denis"]
[Result "1/2-1/2"]
[Board "10"]
[TimeControl "180+1"]
[WhiteFideId "12940690"]
[BlackFideId "14403803"]
[WhiteElo "3034"]
[BlackElo "2831"]
[WhiteTeam "GER"]
[BlackTeam "MNE"]
[WhiteClock "0:00:06"]
[BlackClock "0:00:09"]

1. a3 {[%clk 0:02:56]}  g6 {[%clk 0:02:55]} 2. d4 {[%clk 0:02:55]}  d6 {[%clk 0:02:54]} 3. Nf3 {[%clk 0:02:56]}  Bg7 {[%clk 0:02:55]} 4. b4 {[%clk 0:02:55]}  c5 {[%clk 0:02:53]} 5. e3 {[%clk 0:02:43]}  Bg4 {[%clk 0:02:39]} 6. c3 {[%clk 0:02:34]}  Nf6 {[%clk 0:02:34]} 7. Be2 {[%clk 0:02:32]}  O-O {[%clk 0:02:32]} 8. O-O {[%clk 0:02:32]}  Nbd7 {[%clk 0:02:23]} 9. Bb2 {[%clk 0:02:25]}  Rc8 {[%clk 0:02:21]} 10. Nbd2 {[%clk 0:02:22]}  cxd4 {[%clk 0:02:12]} 11. cxd4 {[%clk 0:02:14]}  Nb6 {[%clk 0:02:05]} 12. a4 {[%clk 0:02:06]}  Nbd5 {[%clk 0:01:59]} 13. Qb3 {[%clk 0:02:00]}  a5 {[%clk 0:01:49]} 14. bxa5 {[%clk 0:01:50]}  Qxa5 {[%clk 0:01:50]} 15. Rfc1 {[%clk 0:01:41]}  Rxc1+ {[%clk 0:01:43]} 16. Rxc1 {[%clk 0:01:41]}  Bd7 {[%clk 0:01:41]} 17. Ra1 {[%clk 0:01:28]}  Rc8 {[%clk 0:01:28]} 18. Nc4 {[%clk 0:01:28]}  Qb4 {[%clk 0:01:22]} 19. Qxb4 {[%clk 0:01:02]}  Nxb4 {[%clk 0:01:23]} 20. a5 {[%clk 0:01:02]}  Be6 {[%clk 0:01:13]} 21. Nfd2 {[%clk 0:00:42]}  d5 {[%clk 0:00:47]} 22. Na3 {[%clk 0:00:42]}  Nc2 {[%clk 0:00:48]} 23. Rc1 {[%clk 0:00:32]}  Nxa3 {[%clk 0:00:46]} 24. Rxc8+ {[%clk 0:00:31]}  Bxc8 {[%clk 0:00:47]} 25. Bxa3 {[%clk 0:00:32]}  e6 {[%clk 0:00:46]} 26. Be7 {[%clk 0:00:21]}  Ne8 {[%clk 0:00:32]} 27. Nb3 {[%clk 0:00:15]}  Bf8 {[%clk 0:00:32]} 28. Bc5 {[%clk 0:00:16]}  Bd7 {[%clk 0:00:28]} 29. f3 {[%clk 0:00:11]}  Ba4 {[%clk 0:00:26]} 30. Bxf8 {[%clk 0:00:10]}  Kxf8 {[%clk 0:00:23]} 31. Nc5 {[%clk 0:00:11]}  Bc6 {[%clk 0:00:23]} 32. Kf2 {[%clk 0:00:11]}  Ke7 {[%clk 0:00:23]} 33. g4 {[%clk 0:00:12]}  g5 {[%clk 0:00:21]} 34. Kg3 {[%clk 0:00:10]}  h6 {[%clk 0:00:21]} 35. h4 {[%clk 0:00:11]}  Nf6 {[%clk 0:00:21]} 36. h5 {[%clk 0:00:08]}  Nd7 {[%clk 0:00:21]} 37. Nd3 {[%clk 0:00:02]}  Bb5 {[%clk 0:00:19]} 38. Kf2 {[%clk 0:00:02]}  Bxd3 {[%clk 0:00:19]} 39. Bxd3 {[%clk 0:00:02]}  Nb8 {[%clk 0:00:19]} 40. Bb5 {[%clk 0:00:02]}  Kd6 {[%clk 0:00:20]} 41. f4 {[%clk 0:00:02]}  f6 {[%clk 0:00:20]} 42. Kf3 {[%clk 0:00:02]}  Nc6 {[%clk 0:00:20]} 43. a6 {[%clk 0:00:03]}  bxa6 {[%clk 0:00:19]} 44. Bxa6 {[%clk 0:00:04]}  e5 {[%clk 0:00:18]} 45. dxe5+ {[%clk 0:00:04]}  fxe5 {[%clk 0:00:18]} 46. fxg5 {[%clk 0:00:04]}  hxg5 {[%clk 0:00:17]} 47. Bb5 {[%clk 0:00:03]}  e4+ {[%clk 0:00:14]} 48. Kg3 {[%clk 0:00:03]}  Ne5 {[%clk 0:00:14]} 49. Be8 {[%clk 0:00:03]}  Ke7 {[%clk 0:00:14]} 50. Ba4 {[%clk 0:00:04]}  Nc4 {[%clk 0:00:13]} 51. Kf2 {[%clk 0:00:04]}  Ne5 {[%clk 0:00:12]} 52. Bd1 {[%clk 0:00:05]}  Kf6 {[%clk 0:00:12]} 53. Kg3 {[%clk 0:00:05]}  Nc4 {[%clk 0:00:12]} 54. Kf2 {[%clk 0:00:05]}  Ne5 {[%clk 0:00:12]} 55. Be2 {[%clk 0:00:06]}  Ke6 {[%clk 0:00:12]} 56. Kg3 {[%clk 0:00:06]}  Kf6 {[%clk 0:00:11]} 57. Bb5 {[%clk 0:00:06]}  Ke6 {[%clk 0:00:11]} 58. Ba6 {[%clk 0:00:07]}  Kd6 {[%clk 0:00:10]} 59. Bc8 {[%clk 0:00:07]}  Nc4 {[%clk 0:00:10]} 60. Kf2 {[%clk 0:00:07]}  Ne5 {[%clk 0:00:09]} 61. h6 {[%clk 0:00:07]}  Ke7 {[%clk 0:00:09]} 62. h7 {[%clk 0:00:07]}  Nf7 {[%clk 0:00:08]} 63. Bb7 {[%clk 0:00:07]}  Kd6 {[%clk 0:00:08]} 64. Ke2 {[%clk 0:00:08]}  Ke5 {[%clk 0:00:08]} 65. Kd2 {[%clk 0:00:08]}  d4 {[%clk 0:00:08]} 66. exd4+ {[%clk 0:00:08]}  Kxd4 {[%clk 0:00:09]} 67. Ke2 {[%clk 0:00:09]}  Nh8 {[%clk 0:00:09]} 68. Bc8 {[%clk 0:00:09]}  Ke5 {[%clk 0:00:09]} 69. Ke3 {[%clk 0:00:09]}  Nf7 {[%clk 0:00:09]} 70. Bb7 {[%clk 0:00:09]}  Kf6 {[%clk 0:00:09]} 71. Bxe4 {[%clk 0:00:10]}  Kg7 {[%clk 0:00:10]} 72. Kd4 {[%clk 0:00:10]}  Nh6 {[%clk 0:00:08]} 73. Bf5 {[%clk 0:00:04]}  Nxg4 {[%clk 0:00:07]} 74. Bxg4 {[%clk 0:00:04]}  Kxh7 {[%clk 0:00:08]} 75. Ke5 {[%clk 0:00:05]}  Kg8 {[%clk 0:00:08]} 76. Kf6 {[%clk 0:00:06]}  Kf8 {[%clk 0:00:09]} 77. Kxg5 {[%clk 0:00:06]} 1/2-1/2